fUST/lending_fUST_20260114
["ID","MTS","AMOUNT","RATE_DAILY","PERIOD"]
[401738759,1768354087014,-300.0,0.00012368,2]
[401738760,1768354087027,-8400.01,0.00012368,2]
[401738767,1768354212320,190.0417615,0.00011609,2]
[401738768,1768354214982,-305.93059153,0.00012361,2]
[401738769,1768354215014,-300.0,0.00012367,2]
[401738770,1768354215046,-1200.0,0.00012367,2]
[401738771,1768354215076,-595.0,0.00012367,2]
[401738772,1768354215109,-300.0,0.00012367,2]
[401738773,1768354215250,-4408.10705544,0.00012368,2]
[401738774,1768354215339,-10000.01,0.00012368,2]
[401738775,1768354220155,407.36341125,0.00030136,120]
[401738776,1768354221218,-222.59238667,0.00012368,2]
[401738777,1768354221257,-9554.82522666,0.00012368,2]
[401738778,1768354221326,-10000.01,0.00012368,2]
[401738779,1768354229763,669.36767975,0.00012292,2]
[401738780,1768354230070,273.0427821,0.00030136,120]
[401738811,1768354237485,-371.27309417,0.00012344,2]
[401739406,1768354245420,249.2151529,0.00030136,120]
[401739446,1768354245976,256.16227559,0.00030136,120]
[401739521,1768354246645,-298.09458555,0.00012344,2]
[401739523,1768354246655,-942.94057905,0.00012361,2]
[401739792,1768354249224,9330.64232025,0.00012268,2]
[401739796,1768354249254,10000.01,0.00012268,2]
[401739801,1768354249286,10000.01,0.00012268,2]
[401739805,1768354249317,10000.01,0.00012268,2]
[401739809,1768354249346,10000.01,0.00012268,2]
[401739813,1768354249373,10000.01,0.00012268,2]
[401739817,1768354249399,10000.01,0.00012268,2]
[401739821,1768354249426,10000.01,0.00012268,2]
[401739825,1768354249452,10000.01,0.00012268,2]
[401739829,1768354249477,10000.01,0.00012268,2]
[401740034,1768354251324,-180.32183878,0.00012268,2]
[401740175,1768354252709,-355.40560895,0.00012268,2]
[401740316,1768354256565,-153.3491535,0.00012268,2]
[401740317,1768354259254,-158.87982182,0.00012268,2]
[401740318,1768354261790,-344.52996672,0.00012268,2]
[401740319,1768354263367,-298.30615314,0.00012267,2]
[401740320,1768354263794,-1.69384686,0.00012267,2]
[401740321,1768354264903,-163.04901972,0.00012268,2]
[401740322,1768354266759,-710.46640681,0.00012035,2]
[401740323,1768354268551,-315.29737132,0.00012268,2]
[401740324,1768354269955,-196.49220155,0.00012035,2]
[401740325,1768354270018,-2642.53156006,0.00012035,2]
[401740326,1768354271497,-240.00570559,0.00012268,2]
[401740327,1768354272866,-160.77133971,0.00012268,2]
[401740328,1768354275357,150.37173557,0.00030136,120]
[401740329,1768354276599,-330.0582376,0.00012268,2]
[401740331,1768354279061,-3294.01406626,0.00012268,2]
[401740332,1768354279149,-10000.01,0.00012268,2]
[401740333,1768354279353,-378.49067879,0.00012268,2]
[401740336,1768354285408,-328.24929525,0.00012268,2]
[401740337,1768354289090,-10000.01,0.00012268,2]
[401740338,1768354289219,-10000.01,0.00012268,2]
[401740339,1768354289710,-304.98086454,0.00012268,2]
[401740340,1768354292802,789.57028157,0.0003013,120]
[401740341,1768354292920,-225.87514555,0.00012268,2]
[401740342,1768354294410,-219.38563284,0.00012268,2]
[401740343,1768354296438,-196.51,0.00012268,2]
[401740344,1768354298040,-169.60906997,0.00012268,2]
[401740345,1768354301346,-155.47003328,0.00012268,2]
[401740346,1768354303357,-236.98259447,0.00012268,2]
[401740347,1768354308382,161.03770444,0.00030136,120]
[401740348,1768354309345,-259.99429441,0.00012268,2]
[401740349,1768354313995,-224.35942418,0.00012268,2]
[401740350,1768354317716,186.85,6.408e-05,2]
[401740351,1768354318107,249.14,6.687e-05,2]
[401740352,1768354318482,-173.51716562,0.00012268,2]
[401740353,1768354318514,311.42,6.966e-05,2]
[401740354,1768354318946,373.7,7.244e-05,2]
[401740355,1768354319367,435.99,7.523e-05,2]
[401740356,1768354319792,498.27,7.802e-05,2]
[401740357,1768354320194,560.56,8.08e-05,2]
[401740358,1768354320599,622.84,8.359e-05,2]
[401740359,1768354320761,-253.24859106,0.00012268,2]
[401740360,1768354326355,-221.57,0.00012267,2]
[401740361,1768354327888,-78.43,0.00012267,2]
[401740362,1768354327914,-110.0813869,0.00012268,2]
[401740363,1768354329537,156.76809398,0.00030136,120]
[401740364,1768354329832,-169.96,0.00012268,2]
[401740365,1768354334214,-185.8047145,0.00012267,2]
[401740366,1768354336012,-178.19657031,0.00012267,2]
[401740367,1768354342920,157.12083893,0.00030136,120]
[401740368,1768354343372,-111.08454957,0.00012267,2]
[401740369,1768354343401,-464.21349406,0.00012268,2]
[401740370,1768354346589,-254.64036561,0.00012268,2]
[401740372,1768354350490,-240.97468499,0.00012268,2]
[401740373,1768354359167,-321.80342969,0.00012268,2]
[401740374,1768354361372,-475.99742899,0.00012268,2]
[401740375,1768354366933,-203.95,0.00012268,2]
[401740376,1768354368474,-442.94323711,0.00012268,2]
[401740377,1768354368967,257.88678037,0.00030136,120]
[401740378,1768354375437,-331.48209646,0.00012268,2]
[401740379,1768354376328,175.28644548,0.00030136,120]
[401740380,1768354378014,-258.71047382,0.00012268,2]
[401740381,1768354378282,621.78986188,0.00030136,120]
[401740382,1768354380084,500.0,0.00030136,120]
[401740383,1768354380337,500.0,0.00030136,120]
[401740384,1768354380560,228.90240162,0.00030136,120]
[401740385,1768354384273,231.35661776,0.00030136,120]
[401740386,1768354384999,-170.66042713,0.00012267,2]
[401740387,1768354391181,168.51,8.945e-05,2]
[401740388,1768354391569,189.57,9.264e-05,2]
[401740389,1768354391958,210.63,9.584e-05,2]
[401740390,1768354392070,-152.19587863,0.00012,2]
[401740391,1768354394143,300.04397683,0.00030136,120]
[401740392,1768354394294,-480.61734207,0.00012,2]
[401740393,1768354396877,-340.27734342,0.00012,2]
[401740394,1768354401521,236.66781855,0.00030136,120]
[401740395,1768354402603,155.0,8.246e-05,2]
[401740396,1768354402868,-168.14582177,0.00011355,2]
[401740397,1768354405397,154.70625215,0.00030136,120]
[401740398,1768354408222,-266.06967552,0.00011355,2]
[401740399,1768354408736,253.00460564,0.00030136,120]
[401740400,1768354409596,155.86183362,0.00030136,120]
[401740401,1768354409787,-185.82457809,0.00011355,2]
[401740402,1768354410446,234.04681436,0.00030136,120]
[401740403,1768354411287,-243.0,0.00011355,2]
[401740404,1768354413900,-309.82486322,0.00011355,2]
[401740405,1768354417671,273.91481719,0.00030136,120]
[401740406,1768354417808,-243.0,0.00011355,2]
[401740407,1768354419269,-222.17185254,0.00011355,2]
[401740408,1768354421384,-555.99726995,0.00011355,2]
[401740409,1768354421902,359.6473266,0.00030136,120]
[401740410,1768354428714,-180.05968308,0.00011355,2]
[401740411,1768354432505,-167.32207296,0.00011355,2]
[401740412,1768354434926,-309.10288287,0.00011355,2]
[401740413,1768354436392,-168.03777039,0.00011355,2]
[401740414,1768354436627,158.27037519,0.00030136,120]
[401740415,1768354439144,-197.54298457,0.00011355,2]
[401740416,1768354441778,-247.8309821,0.00011355,2]
[401740417,1768354446732,238.95131314,0.00030136,120]
[401740418,1768354447233,-300.0,0.00011354,2]
[401740419,1768354450416,-449.23066933,0.00011355,2]
[401740420,1768354451028,283.96252494,0.00030136,120]
[401740421,1768354454375,-305.395364,0.0001123,2]
[401740422,1768354457533,-240.1247575,0.0001123,2]
[401740423,1768354457687,-21.5538748,0.00011355,2]
[401740424,1768354460929,-152.3129655,0.00011355,2]
[401740425,1768354462511,-206.16292862,0.00011355,2]
[401740426,1768354464430,-259.3108722,0.00011355,2]
[401740427,1768354471237,-238.72285067,0.00011355,2]
[401740428,1768354473250,-164.73874826,0.00011355,2]
[401740429,1768354479070,-205.14083363,0.00011355,2]
[401740430,1768354481137,-160.85055322,0.00011355,2]
[401740431,1768354487391,-404.7322015,0.00011355,2]
[401740432,1768354488948,-232.37590005,0.00011355,2]
[401740433,1768354495773,-214.21744863,0.00011355,2]
[401740434,1768354497940,-257.06635604,0.00011355,2]
[401740435,1768354503414,-300.0,0.00011354,2]
[401740436,1768354507856,-300.0,0.00011354,2]
[401740437,1768354511186,-295.18304367,0.00011354,2]
[401740438,1768354512705,-385.08702158,0.00011354,2]
[401740439,1768354515164,-288.54316142,0.00011354,2]
[401740440,1768354518937,-189.57,0.00011354,2]
[401740441,1768354521119,-41.61677333,0.00011354,2]
[401740442,1768354521140,-128.54558368,0.00011355,2]
[401740443,1768354525901,292.91,0.00030137,120]
[401740444,1768354527537,-412.92885453,0.00011355,2]
[401740445,1768354530612,-199.81028461,0.00011355,2]
[401740446,1768354534303,-183.6475776,0.00011355,2]
[401740447,1768354535928,-300.0,0.00011355,2]
[401740448,1768354538033,-812.71751145,0.00011355,2]
[401740449,1768354539588,-156.33034166,0.00011355,2]
[401740450,1768354541068,-669.9149176,0.00011355,2]
[401740451,1768354543405,-263.51690663,0.00011355,2]
[401740452,1768354545637,-273.918,0.00011355,2]
[401740453,1768354550686,-163.55,0.00011354,2]
[401740454,1768354554336,-221.67868038,0.00011354,2]
[401740455,1768354555850,-114.77131962,0.00011354,2]
[401740456,1768354555873,-350.94916758,0.00011354,2]
[401740457,1768354558635,-149.05083242,0.00011354,2]
[401740458,1768354558659,-224.14916758,0.00011354,2]
[401740459,1768354562501,-185.10582227,0.00011353,2]
[401740460,1768354568440,-114.89417773,0.00011353,2]
[401740461,1768354568462,-88.74761084,0.00011353,2]
[401740462,1768354576914,-167.60787051,0.00011353,2]
[401740463,1768354583339,-43.64451865,0.00011353,2]
[401740464,1768354583364,-241.26748135,0.00011354,2]
[401740465,1768354585884,-34.58335107,0.00011354,2]
[401740466,1768354585907,-435.07772497,0.00011354,2]
[401740467,1768354587331,-64.92227503,0.00011354,2]
[401740468,1768354587355,-233.224625,0.00011354,2]
[401740469,1768354589987,-201.05831972,0.00011354,2]
[401740470,1768354590010,-57.91168028,0.00011354,2]
[401740471,1768354591516,161.65,9.071e-05,2]
[401740472,1768354591701,-442.08831972,0.00011354,2]
[401740473,1768354591724,-4.41989171,0.00011354,2]
[401740474,1768354593966,-211.44950232,0.00011354,2]
[401740476,1768354599493,-175.86,0.00011354,2]
[401740477,1768354658283,163.28,9.167e-05,2]
[401740478,1768354676660,786.0,0.00030137,120]
[401740479,1768354694795,153.1301299,0.00030136,120]
[401740480,1768354719773,153.84609537,0.00030136,120]
[401740481,1768354820493,-150.40566175,0.00011341,2]
[401740482,1768354820523,-579.0,0.00011341,2]
[401740483,1768354820550,-300.0,0.00011351,2]
[401740484,1768354820578,-500.0,0.00011352,2]
[401740485,1768354820606,-500.50072063,0.00011352,2]
[401740486,1768354820636,-500.0,0.00011352,2]
[401740487,1768354820665,-500.58013402,0.00011352,2]
[401740488,1768354820691,-500.0,0.00011352,2]
[401740489,1768354820719,-500.0,0.00011352,2]
[401740490,1768354820747,-278.34052776,0.00011352,2]
[401740491,1768354820777,-500.0,0.00011352,2]
[401740492,1768354821025,-500.0,0.00011352,2]
[401740493,1768354821052,-500.0,0.00011352,2]
[401740494,1768354821079,-500.0,0.00011352,2]
[401740495,1768354821105,-500.0,0.00011352,2]
[401740496,1768354821132,-500.0,0.00011352,2]
[401740497,1768354821160,-500.0,0.00011352,2]
[401740498,1768354821187,-500.0,0.00011352,2]
[401740499,1768354821214,-500.0,0.00011352,2]
[401740500,1768354821241,-211.62331188,0.00011352,2]
[401740501,1768354821268,-500.0,0.00011352,2]
[401740502,1768354821295,-76.76337624,0.00011352,2]
[401740503,1768354821409,-423.23662376,0.00011352,2]
[401740504,1768354821439,-500.0,0.00011352,2]
[401740505,1768354821471,-500.0,0.00011352,2]
[401740506,1768354821502,-500.0,0.00011352,2]
[401740507,1768354821533,-500.0,0.00011352,2]
[401740508,1768354821562,-500.0,0.00011352,2]
[401740509,1768354821591,-500.0,0.00011352,2]
[401740510,1768354821619,-500.0,0.00011352,2]
[401740511,1768354821648,-627.36164023,0.00011352,2]
[401740512,1768354821678,-398.81347202,0.00011352,2]
[401740513,1768354821721,-101.18652798,0.00011352,2]
[401740514,1768354821750,-500.0,0.00011352,2]
[401740515,1768354821779,-500.0,0.00011352,2]
[401740516,1768354821807,-500.0,0.00011352,2]
[401740517,1768354821837,-500.0,0.00011352,2]
[401740518,1768354821869,-500.0,0.00011352,2]
[401740519,1768354821897,-500.0,0.00011352,2]
[401740520,1768354821925,-500.0,0.00011352,2]
[401740521,1768354821954,-500.0,0.00011352,2]
[401740522,1768354821981,-500.0,0.00011352,2]
[401740523,1768354822009,-297.63694404,0.00011352,2]
[401740524,1768354822302,-202.36305596,0.00011352,2]
[401740525,1768354822330,-500.0,0.00011352,2]
[401740526,1768354822357,-500.0,0.00011352,2]
[401740527,1768354822384,-614.16894262,0.00011352,2]
[401740528,1768354822410,-500.0,0.00011352,2]
[401740529,1768354822438,-500.0,0.00011352,2]
[401740530,1768354822471,-500.0,0.00011352,2]
[401740531,1768354822500,-500.0,0.00011352,2]
[401740532,1768354822529,-500.0,0.00011352,2]
[401740533,1768354822557,-500.0,0.00011352,2]
[401740534,1768354822801,-500.0,0.00011352,2]
[401740535,1768354822832,-500.0,0.00011352,2]
[401740536,1768354822860,-500.0,0.00011352,2]
[401740537,1768354822889,-500.0,0.00011352,2]
[401740538,1768354822917,-500.0,0.00011352,2]
[401740539,1768354822945,-500.0,0.00011352,2]
[401740540,1768354822973,-500.0,0.00011352,2]
[401740541,1768354823001,-500.0,0.00011352,2]
[401740542,1768354823029,-500.0,0.00011352,2]
[401740543,1768354823058,-500.0,0.00011352,2]
[401740544,1768354823165,-500.0,0.00011352,2]
[401740545,1768354823194,-500.0,0.00011352,2]
[401740546,1768354823222,-500.0,0.00011352,2]
[401740547,1768354823250,-500.0,0.00011352,2]
[401740548,1768354823277,-500.0,0.00011352,2]
[401740549,1768354823305,-500.0,0.00011352,2]
[401740550,1768354823338,-500.0,0.00011352,2]
[401740551,1768354823368,-500.0,0.00011352,2]
[401740552,1768354823398,-500.0,0.00011352,2]
[401740553,1768354823427,-500.0,0.00011352,2]
[401740554,1768354823496,-500.0,0.00011352,2]
[401740555,1768354823527,-500.0,0.00011352,2]
[401740556,1768354823556,-500.0,0.00011352,2]
[401740557,1768354823586,-500.0,0.00011352,2]
[401740558,1768354823619,-359.43943503,0.00011352,2]
[401740559,1768354823649,-500.0,0.00011352,2]
[401740560,1768354823682,-500.0,0.00011352,2]
[401740561,1768354823712,-500.0,0.00011352,2]
[401740562,1768354823741,-500.0,0.00011352,2]
[401740563,1768354823773,-500.0,0.00011352,2]
[401740564,1768354823908,-304.52494986,0.00011352,2]
[401740565,1768354823938,-500.0,0.00011352,2]
[401740566,1768354823966,-500.0,0.00011352,2]
[401740567,1768354823994,-300.0,0.00011352,2]
[401740568,1768354824025,-500.0,0.00011352,2]
[401740569,1768354824053,-500.0,0.00011352,2]
[401740570,1768354824080,-484.8430128,0.00011352,2]
[401740571,1768354824109,-500.0,0.00011352,2]
[401740572,1768354824139,-483.30860173,0.00011353,2]
[401740573,1768354825771,-16.69139827,0.00011353,2]
[401740574,1768354825788,-484.8430128,0.00011353,2]
[401740575,1768354825805,-500.0,0.00011353,2]
[401740576,1768354825824,-483.30860173,0.00011353,2]
[401740577,1768354825842,-1854.65687122,0.00011353,2]
[401740578,1768354825973,-10000.01,0.00011353,2]
[401740579,1768354825992,-10000.01,0.00011353,2]
[401740580,1768354826011,-10000.01,0.00011353,2]
[401740581,1768354826028,-10000.01,0.00011353,2]
[401740582,1768354826252,-3339.54988402,0.00011353,2]
[401740583,1768354826279,-3320.91023196,0.00011353,2]
[401740584,1768354826518,-108.27060597,0.00011354,2]
[401740585,1768354826553,-500.0,0.00011354,2]
[401740586,1768354826589,-500.0,0.00011354,2]
[401740587,1768354826624,-500.0,0.00011354,2]
[401740588,1768354826657,-500.0,0.00011354,2]
[401740589,1768354826691,-500.0,0.00011354,2]
[401740590,1768354826725,-500.0,0.00011354,2]
[401740591,1768354826759,-500.0,0.00011354,2]
[401740592,1768354826793,-500.0,0.00011354,2]
[401740593,1768354826828,-500.0,0.00011354,2]
[401740594,1768354826863,-283.46878806,0.00011354,2]
[401740595,1768354826981,-216.53121194,0.00011354,2]
[401740596,1768354827020,-500.0,0.00011354,2]
[401740597,1768354827055,-500.0,0.00011354,2]
[401740598,1768354827091,-167.74151594,0.00011354,2]
[401740599,1768354827124,-500.0,0.00011354,2]
[401740600,1768354827159,-500.0,0.00011354,2]
[401740601,1768354827193,-500.0,0.00011354,2]
[401740602,1768354827226,-500.0,0.00011354,2]
[401740603,1768354827724,-216.53121194,0.00011355,2]
[401740604,1768354827752,-3231.46454424,0.00011355,2]
[401740605,1768354827795,-10000.01,0.00011355,2]
[401740606,1768354827809,-10000.01,0.00011355,2]
[401740607,1768354827829,-10000.01,0.00011355,2]
[401740608,1768354827842,-10000.01,0.00011355,2]
[401740609,1768354851389,-164.46405627,0.00011,2]
[401740610,1768354854916,348.93,5.793e-05,2]
[401740611,1768354855317,697.86,6.069e-05,2]
[401740612,1768354855743,1046.79,6.345e-05,2]
[401740613,1768354856130,1395.72,6.621e-05,2]
[401740614,1768354856530,1744.65,6.897e-05,2]
[401740615,1768354856938,2093.58,7.173e-05,2]
[401740616,1768354857341,2442.51,7.449e-05,2]
[401740617,1768354857765,229.97,7.725e-05,2]
[401740618,1768354857789,2561.47,7.725e-05,2]
[401740619,1768354858146,3140.37,8.001e-05,2]
[401740620,1768354858549,3489.3,8.276e-05,2]
[401740621,1768354873389,219.2234989,0.00030136,120]
[401740623,1768354905894,200.0,0.00011194,20]
[401740624,1768354906517,200.0,0.00010039,16]
[401740625,1768354906811,200.0,0.00010039,17]
[401740626,1768354907142,-178.51215727,0.00010794,2]
[401740627,1768354930342,180.45,6.009e-05,2]
[401740628,1768354930742,228.42,6.296e-05,2]
[401740629,1768354930765,132.48,6.296e-05,2]
[401740630,1768354931136,541.35,6.582e-05,2]
[401740631,1768354931540,721.8,6.868e-05,2]
[401740632,1768354931943,902.25,7.154e-05,2]
[401740633,1768354932369,1082.7,7.44e-05,2]
[401740634,1768354932772,1263.15,7.726e-05,2]
[401740635,1768354933166,1443.6,8.012e-05,2]
[401740636,1768354933575,1624.05,8.299e-05,2]
[401740637,1768354933989,1804.5,8.585e-05,2]
[401740638,1768354955523,158.25734269,0.00030136,120]
[401740643,1768355005722,162.4,6.651e-05,2]
[401740644,1768355006121,216.54,6.94e-05,2]
[401740645,1768355006526,105.19,7.229e-05,2]
[401740646,1768355006563,165.48,7.229e-05,2]
[401740647,1768355006933,324.81,7.518e-05,2]
[401740648,1768355007332,378.94,7.808e-05,2]
[401740649,1768355007897,433.08,8.097e-05,2]
[401740650,1768355008186,487.21,8.386e-05,2]
[401740651,1768355008588,541.35,8.675e-05,2]
[401740652,1768355044935,-451.13,0.000108,2]
[401740653,1768355044964,-1559.56098706,0.00011259,2]
[401740654,1768355044993,-473.6424297,0.000113,2]
[401740655,1768355045021,-228.85736207,0.0001131,2]
[401740656,1768355045051,-300.0,0.00011341,2]
[401740657,1768355045080,-552.34451625,0.00011342,2]
[401740658,1768355045109,-659.56134483,0.00011342,2]
[401740659,1768355045321,-1549.81672018,0.00011342,2]
[401740660,1768355045349,-1929.27591337,0.00011342,2]
[401740661,1768355045411,-3041.8247329,0.00011342,2]
[401740662,1768355045569,-1162.49773997,0.00011342,2]
[401740663,1768355045714,-2324.99547994,0.00011342,2]
[401740664,1768355045825,-4649.99095988,0.00011342,2]
[401740665,1768355045998,-700.02808024,0.00011342,2]
[401740666,1768355046027,-3564.83311106,0.00011354,2]
[401740667,1768355046060,-1470.2876174,0.00011354,2]
[401740668,1768355046091,-500.0,0.00011354,2]
[401740669,1768355046122,-500.0,0.00011354,2]
[401740670,1768355046514,-6457.7212774,0.00011355,2]
[401740671,1768355047683,-10000.01,0.00011355,2]
[401740672,1768355047787,-10000.01,0.00011355,2]
[401740673,1768355047924,-10000.01,0.00011355,2]
[401740674,1768355048069,-10000.01,0.00011355,2]
[401740675,1768355048216,-10000.01,0.00011355,2]
[401740676,1768355048379,-10000.01,0.00011355,2]
[401740677,1768355048510,-657.07827125,0.00011355,2]
[401740678,1768355077670,167.72,8.341e-05,2]
[401740679,1768355080151,1408.0,0.0001061,2]
[401740680,1768355081540,-163.99485845,0.0001141,2]
[401740681,1768355081573,-584.59200825,0.0001141,2]
[401740682,1768355081604,-238.30705974,0.0001141,2]
[401740683,1768355081804,-500.0,0.0001158,2]
[401740684,1768355081833,-303.9980613,0.0001158,2]
[401740685,1768355081862,-500.0,0.0001158,2]
[401740686,1768355081894,-500.0,0.0001158,2]
[401740687,1768355081925,-500.0,0.0001158,2]
[401740688,1768355081964,-500.0,0.0001158,2]
[401740689,1768355081999,-500.0,0.0001158,2]
[401740690,1768355082031,-500.0,0.0001158,2]
[401740691,1768355082247,-500.0,0.0001158,2]
[401740692,1768355082277,-500.0,0.0001158,2]
[401740693,1768355082305,-500.0,0.0001158,2]
[401740694,1768355082336,-500.0,0.0001158,2]
[401740695,1768355082365,-500.0,0.0001158,2]
[401740696,1768355082394,-500.0,0.0001158,2]
[401740697,1768355082423,-500.0,0.0001158,2]
[401740698,1768355082457,-208.81593167,0.0001158,2]
[401740699,1768355082486,-500.0,0.0001158,2]
[401740700,1768355082514,-500.0,0.0001158,2]
[401740701,1768355082545,-82.37813666,0.0001158,2]
[401740702,1768355086664,-417.62186334,0.0001158,2]
[401740703,1768355086695,-500.0,0.0001158,2]
[401740704,1768355086725,-300.0,0.00011581,2]
[401740705,1768355086753,-300.0,0.00011581,2]
[401740706,1768355086783,-300.0,0.00011581,2]
[401740707,1768355086826,-300.0,0.00011581,2]
[401740708,1768355086858,-300.0,0.00011581,2]
[401740709,1768355086889,-300.0,0.00011581,2]
[401740710,1768355086920,-300.0,0.00011581,2]
[401740711,1768355086952,-300.0,0.00011581,2]
[401740712,1768355086982,-300.0,0.00011581,2]
[401740713,1768355087014,-300.0,0.00011581,2]
[401740714,1768355087045,-300.0,0.00011581,2]
[401740715,1768355087075,-300.0,0.00011581,2]
[401740716,1768355087107,-300.0,0.00011581,2]
[401740717,1768355087136,-64.76627332,0.00011581,2]
[401740718,1768355092962,-235.23372668,0.00011581,2]
[401740719,1768355092993,-300.0,0.00011581,2]
[401740720,1768355093023,-600.0,0.00011581,2]
[401740721,1768355093051,-2732.25612894,0.00011923,2]
[401740722,1768355093080,-401.24764879,0.00011939,2]
[401740723,1768355093247,-988.95278619,0.00011939,2]
[401740725,1768355098730,-500.0,0.00011228,2]
[401740726,1768355100777,-393.46624337,0.00011228,2]
[401740727,1768355143488,167.52,7.48e-05,2]
[401740728,1768355143892,195.44,7.768e-05,2]
[401740729,1768355144809,223.36,8.055e-05,2]
[401740730,1768355145229,251.28,8.343e-05,2]
[401740731,1768355146149,279.2,8.631e-05,2]
[401740733,1768355241971,-371.8739692,0.00010939,2]
[401740734,1768355241992,-167.96817192,0.00011212,2]
[401740735,1768355279326,164.62,8.515e-05,2]
[401740736,1768355279723,185.19,8.819e-05,2]
[401740737,1768355280129,205.77,9.123e-05,2]
[401740738,1768355301851,-132.03182808,0.00011212,2]
[401740739,1768355301875,-132.97884854,0.0001122,2]
[401740740,1768355303355,-213.65659245,0.0001122,2]
[401740741,1768355304950,-117.53414011,0.0001122,2]
[401740742,1768355304971,-52.34029359,0.00011228,2]
[401740746,1768355348331,152.32,9.629e-05,2]
[401740747,1768355349295,174.08,9.986e-05,2]
[401740748,1768355361856,-174.104,0.00010343,2]
[401740790,1768355388516,-21.736,0.00010343,2]
[401740791,1768355406346,-217.6,0.00010699,2]
[401740792,1768355406370,-507.99583089,0.00010699,2]
[401740793,1768355416433,166.56,8.001e-05,2]
[401740794,1768355416939,190.36,8.297e-05,2]
[401740795,1768355417353,214.15,8.594e-05,2]
[401740796,1768355417763,237.95,8.89e-05,2]
[401740800,1768355432474,-62.00416911,0.00010699,2]
[401740801,1768355432484,-53.19346304,0.00011228,2]
[401740802,1768355432494,-614.43281837,0.00011342,2]
[401740803,1768355432503,-300.0,0.00011579,2]
[401740804,1768355432513,-1200.0,0.00011579,2]
[401740805,1768355432522,-300.0,0.00011579,2]
[401740806,1768355432531,-300.0,0.0001158,2]
[401740807,1768355432541,-300.0,0.0001158,2]
[401740808,1768355432550,-300.0,0.0001158,2]
[401740809,1768355432559,-300.0,0.0001158,2]
[401740810,1768355432568,-300.0,0.0001158,2]
[401740811,1768355432577,-300.0,0.0001158,2]
[401740812,1768355432586,-300.0,0.0001158,2]
[401740813,1768355432595,-300.0,0.0001158,2]
[401740814,1768355432604,-300.0,0.0001158,2]
[401740815,1768355432613,-300.0,0.0001158,2]
[401740816,1768355432622,-300.0,0.0001158,2]
[401740817,1768355432632,-300.0,0.0001158,2]
[401740819,1768355432644,-300.0,0.0001158,2]
[401740821,1768355432653,-300.0,0.0001158,2]
[401740822,1768355432663,-300.0,0.0001158,2]
[401740824,1768355432672,-6547.61801703,0.0001158,2]
[401740826,1768355432682,-600.0,0.00011811,2]
[401740828,1768355432691,-5261.94245079,0.00011811,2]
[401740830,1768355432700,-501.1033856,0.00011932,2]
[401740832,1768355432709,-500.0,0.00012,2]
[401740834,1768355432721,-1654.84216398,0.00012055,2]
[401740836,1768355432730,-804.14140944,0.00012072,2]
[401740838,1768355432740,-151.0,0.000121,2]
[401740840,1768355432749,-151.0,0.000121,2]
[401740842,1768355432758,-3029.55559719,0.00012115,2]
[401740844,1768355432768,-500.0,0.0001216,2]
[401740846,1768355432777,-212.79864291,0.0001216,2]
[401740848,1768355432786,-500.0,0.0001216,2]
[401740850,1768355432796,-500.0,0.0001216,2]
[401740852,1768355432805,-500.0,0.0001216,2]
[401740854,1768355432814,-500.0,0.0001216,2]
[401740856,1768355432824,-500.0,0.0001216,2]
[401740858,1768355432833,-500.0,0.0001216,2]
[401740860,1768355432842,-500.0,0.0001216,2]
[401740862,1768355432852,-500.0,0.0001216,2]
[401740864,1768355432861,-500.0,0.0001216,2]